{"text_format":"3","workbook":"xlsx","n_sheets":3,"sheets":["Лист назначений","Лист динамического наблюдения","Шкала Морсе"],"not_rendered":{"charts":1},"read":"whole","date_system":"1900"}

{"sheet":"Лист назначений","index":0,"n_rows":28,"n_cols":14,"rows_kept":28,"merged":[[0,0,0,4],[0,5,0,13],[1,0,1,5],[1,6,1,10],[1,12,1,13],[2,0,2,5],[2,6,2,10],[2,12,2,13],[4,0,4,13],[5,0,5,13],[7,1,7,9],[7,10,7,11],[7,12,7,13],[9,1,9,13],[11,1,11,13],[12,6,12,10],[12,12,12,13],[14,0,16,0],[14,1,16,1],[14,2,16,2],[14,3,14,12],[14,13,16,13]]}
[{"$nulls":5},"Модуль А. Сестринский уход за пациентом после ринопластики в условиях стационара (инвариант)"]
["Центр сосудистой и пластической хирургии",{"$nulls":5},"Оториноларингологии",{"$nulls":5},1241]
["наименование больницы",{"$nulls":5},"отделение",{"$nulls":5},"палата"]
[]
["ЛИСТ ВРАЧЕБНЫХ НАЗНАЧЕНИЙ"]
["к медитцинской карте стационарного больного №0214"]
[]
["Фамилия, имя, отчество пациента","Агафонова Алена Игоревна",{"$nulls":8},"Дата рождения:",null,{"$f":"G16-18000","v":"1973-12-09"}]
[]
["Диагноз (основное заболевание)","Рассеянный склероз. Ремитирующее течение, фаза обострения. \nНижний вялый парапарез"]
[]
["Аллергические реакции на лекарственные препараты, пищевая аллергия или иные виды непереносимости в анамнезе, с указанием типа и вида аллергической реакции:","не выявлено"]
[]
[]
["Назначение","Дата назначения","Дата отмены","Отметка об исполнении назначения лекарственного препарата, лечебного питания, режима\n(дата и время исполнения, подпись медицинского работника ответственного за исполнение)",{"$nulls":9},"Сведения о реакции наприменения\n(при наличии)"]
[{"$nulls":3},{"$f":"G16-1","v":"2023-03-21"},{"$f":"G16-1","v":"2023-03-21"},{"$f":"G16-1","v":"2023-03-21"},{"$f":"TODAY()","v":"2023-03-22"}]
[{"$nulls":3},"УТРО","ДЕНЬ","ВЕЧЕР","УТРО"]
[" Режим ОБЩИЙ",{"$f":"D16","v":"2023-03-21"}]
[" Стол №15",{"$f":"B18","v":"2023-03-21"}]
["Sol. Heparini 5000 МЕ 1 ml. п/к 1р/день","2023-03-21",{"$f":"G16","v":"2023-03-22"}]
["Cyclophosphamidi 200мг +Sol. Natrii chloridi 0,9% isotonici -500 мл в/в капельно",{"$f":"B20","v":"2023-03-21"}]
["Передвижение при помощи ходунков с 07.04.2023г.","2023-03-21",null,"Захаров З.В.","Шарипова А.Н.","Захаров З.В."]
["Контроль температуры тела 2 р/ день","2023-03-21",null,"Захаров З.В.","Шарипова А.Н.","Захаров З.В."]
["Пульсоксиметрия 3 раза в день","2023-03-21",null,"Захаров З.В.","Шарипова А.Н.","Захаров З.В."]
["Контроль ЧДД 2 раза в день","2023-03-21",null,"Захаров З.В.","Шарипова А.Н.","Захаров З.В."]
["Контроль АД 2 раза в день","2023-03-21",null,"Захаров З.В.","Шарипова А.Н.","Захаров З.В."]
["Оксигенотерапия 2 - 4 л/мин при SPO2 ниже 95%",{"$f":"G16","v":"2023-03-22"},null,"Захаров З.В.","Шарипова А.Н.","Захаров З.В."]
["Отметка о проверке выполнения назначений лечащим врачом"]

{"sheet":"Лист динамического наблюдения","index":1,"n_rows":42,"n_cols":22,"rows_kept":42,"merged":[[0,0,0,10],[0,13,0,21],[2,0,2,21],[3,0,3,21],[5,2,5,13],[5,17,5,19]]}
[]
[]
["ЛИСТ РЕГИСТРАЦИИ ПОКАЗАТЕЛЕЙ ЖИЗНЕННО ВАЖНЫЙ ФУНКЦИЙ"]
[]
[]
[null,"Фамилия, имя, отчество пациента","Агафонова Алена Игоревна",{"$nulls":13},"Дата рождения: ","1973-12-09",null,null,"Рост",165]
[]
[null,"Сутки пребывания"]
[]
[null,"Дата"]
[]
[null,"Время"]
[]
[null,"Температура тела, оС"]
{"$rows_empty":9}
[null,"Артериальное давление"]
[]
[null,"Пульс"]
[]
[null,"Частота дыхания"]
[]
[null,"SpO2, %"]
[]
[null,"Масса тела (кг)"]
[]
[null,"Выпито жидкости (мл)"]
[]
[null,"Введено жидкости (мл)\nпарентерально"]
[]
[null,"Суточный объем мочи (мл)"]
[]
[null,"Стул"]
[]
[null,"Подпись \nмедицинской сестры"]

{"sheet":"Шкала Морсе","index":2,"n_rows":65,"n_cols":15,"rows_kept":65,"merged":[[2,2,2,14],[5,2,5,14],[8,2,8,14],[13,3,13,5],[20,3,20,5],[27,3,27,14],[35,3,35,5],[42,3,42,14],[50,3,50,14],[55,2,55,3],[55,4,55,14],[56,2,56,3],[56,4,56,14],[63,10,63,14],[64,10,64,14]]}
[]
[]
[null,null,"ШКАЛА МОРСЕ ДЛЯ ОЦЕНКИ РИСКА ПАДЕНИЙ ПАЦИЕНТОВ"]
[]
[null,null,"Пациент"]
[null,null,"Агафонова Алена Игоревна,  50 лет"]
[]
[null,null,"Диагноз"]
[null,null,"Рассеянный склероз. Ремитирующее течение, фаза обострения. \nНижний вялый парапарез"]
[]
[{"$f":"CHOOSE(B14,25,0)","v":{"$error":"#VALUE!"}},{"$f":"IFERROR(A11,0)","v":0},"1. Падал ли в последние 3 мес?"]
[null,{"$f":"IF(D14=0,1,2)","v":1},{"$f":"CHOOSE(B12,\">> Выберите вариант ответа из выпадающего списка\",\">> Ваш вариант ответа учтен \")","v":">> Выберите вариант ответа из выпадающего списка"},{"$nulls":11},">> Ваш вариант ответа учтен "]
[]
[null,{"$f":"LEFT(D14,1)","v":""},">"]
[{"$nulls":3},"1 - Да [25 баллов]"]
[{"$nulls":3},"2 - Нет [0 баллов]"]
[]
[{"$f":"CHOOSE(B21,15,0)","v":{"$error":"#VALUE!"}},{"$f":"IFERROR(A18,0)","v":0},"2. Есть ли сопутствующее заболевание? "]
[null,{"$f":"IF(D21=0,1,2)","v":1},{"$f":"CHOOSE(B19,\">> Выберите вариант ответа из выпадающего списка\",\">> Ваш вариант ответа учтен \")","v":">> Выберите вариант ответа из выпадающего списка"},{"$nulls":11},">> Ваш вариант ответа учтен "]
[]
[null,{"$f":"LEFT(D21,1)","v":""},">"]
[{"$nulls":3},"1 - Да  [15 баллов]"]
[{"$nulls":3},"2 - Нет  [0 баллов]"]
[]
[{"$f":"CHOOSE(B28,0,15,30)","v":{"$error":"#VALUE!"}},{"$f":"IFERROR(A25,0)","v":0},"3. Самостоятельность при ходьбе:"]
[null,{"$f":"IF(D28=0,1,2)","v":1},{"$f":"CHOOSE(B26,\">> Выберите вариант ответа из выпадающего списка\",\">> Ваш вариант ответа учтен \")","v":">> Выберите вариант ответа из выпадающего списка"}]
[null,null," "]
[null,{"$f":"LEFT(D28,1)","v":""},">"]
[{"$f":"IF(C29=\"+\",0,\" \")","v":" "},null,null,"1 - Ходит сам (даже если при помощи кого-то), или строгий постельный режим, неподвижен [0 баллов]"]
[{"$f":"IF(C30=\"+\",15,\" \")","v":" "},null,null,"2 - Костыли / ходунки / трость [15 баллов]"]
[{"$f":"IF(C31=\"+\",30,\" \")","v":" "},null,null,"3 - Опирается о мебель или стены для поддержки при ходьбе  [30 баллов]"]
[]
[{"$f":"CHOOSE(B36,20,0)","v":{"$error":"#VALUE!"}},{"$f":"IFERROR(A33,0)","v":0},"4. Назначены внутривенные вливания/установлен внутривенный катетер"]
[null,{"$f":"IF(D36=0,1,2)","v":1},{"$f":"CHOOSE(B34,\">> Выберите вариант ответа из выпадающего списка\",\">> Ваш вариант ответа учтен \")","v":">> Выберите вариант ответа из выпадающего списка"},{"$nulls":11},">> Ваш вариант ответа учтен "]
[]
[null,{"$f":"LEFT(D36,1)","v":""},">"]
[{"$f":"IF(C37=\"+\",20,\" \")","v":" "},null,null,"1 - Да  [20 баллов]"]
[{"$f":"IF(C38=\"+\",0,\" \")","v":" "},null,null,"2 - Нет  [0 баллов]"]
[]
[{"$f":"CHOOSE(B43,0,10,20)","v":{"$error":"#VALUE!"}},{"$f":"IFERROR(A40,0)","v":0},"5. Походка"]
[null,{"$f":"IF(D43=0,1,2)","v":1},{"$f":"CHOOSE(B41,\">> Выберите вариант ответа из выпадающего списка\",\">> Ваш вариант ответа учтен \")","v":">> Выберите вариант ответа из выпадающего списка"},{"$nulls":11},">> Ваш вариант ответа учтен "]
[]
[null,{"$f":"LEFT(D43,1)","v":""},">"]
[{"$f":"IF(C44=\"+\",0,\" \")","v":" "},null,null,"1 - Нормальная (ходит свободно)  [0 баллов]"]
[{"$f":"IF(C45=\"+\",10,\" \")","v":" "},null,null,"2 - Слегка несвободная (ходит с остановками, шаги короткие, иногда с задержкой)  [10 баллов]"]
[{"$f":"IF(C46=\"+\",20,\" \")","v":" "},null,null,"3 - Нарушена (не может встать, ходит опираясь, смотрит вниз)  [20 баллов]"]
[]
[{"$f":"CHOOSE(B51,0,15)","v":{"$error":"#VALUE!"}},{"$f":"IFERROR(A48,0)","v":0},"6. Психическое состояние"]
[null,{"$f":"IF(D51=0,1,2)","v":1},{"$f":"CHOOSE(B49,\">> Выберите вариант ответа из выпадающего списка\",\">> Ваш вариант ответа учтен \")","v":">> Выберите вариант ответа из выпадающего списка"},{"$nulls":11},">> Ваш вариант ответа учтен "]
[]
[null,{"$f":"LEFT(D51,1)","v":""},">"]
[{"$f":"IF(C52=\"+\",0,\" \")","v":" "},null,null,"1 - Знает свою способность двигаться  [0 баллов]"]
[{"$f":"IF(C53=\"+\",15,\" \")","v":" "},null,null,"2 - Не знает или забывает, что нужна помощь при движении  [15 баллов]"]
[]
[null,null,"Итого",null,"Интерпретация результата"]
[null,null,{"$f":"SUM(B48,B40,B33,B25,B18,B11)","v":0}]
[null,null,"б а л л о в",null,"в ы б е р и т е   с о о т в е т с в у ю щ и й   р е з у л ь т а т   и з   в ы п а д а ю щ е г о   с п и с к а"]
[]
[{"$nulls":4},"- Нет риска падений"]
[{"$nulls":4},"- Низкий риск падения"]
[{"$nulls":4},"- Высокий риск падения"]
[]
[{"$nulls":14},"Медицинская сестра"]
[{"$nulls":10},"Долгов Кирилл Викторович / Самарская область"]
[{"$nulls":10},"фамилия имя отчество / регион"]